fUST/lending_fUST_20250830
["ID","MTS","AMOUNT","RATE_DAILY","PERIOD"]
[382290131,1756565469129,-1000.0,0.00019178,2]
[382290132,1756565469139,-1000.0,0.00019178,2]
[382290133,1756565469152,-480.0,0.00019178,2]
[382290134,1756565469162,-1000.0,0.00019178,2]
[382290135,1756565469172,-1000.0,0.00019178,2]
[382290136,1756565469181,-1057.45,0.00019178,2]
[382290137,1756565469191,-1000.0,0.00019178,2]
[382290138,1756565469201,-1000.0,0.00019178,2]
[382290139,1756565469210,-1000.0,0.00019178,2]
[382290140,1756565469220,-412.3326806,0.00019178,2]
[382290141,1756565469229,-486.87,0.00019178,2]
[382290142,1756565469239,-480.0,0.00019178,2]
[382290143,1756565469250,-480.0,0.00019178,2]
[382290144,1756565469261,-480.0,0.00019178,2]
[382290145,1756565469271,-480.0,0.00019178,2]
[382290146,1756565469280,-480.0,0.00019178,2]
[382290147,1756565469292,-480.0,0.00019178,2]
[382290148,1756565469302,-885.35,0.00019178,2]
[382290149,1756565469312,-480.0,0.00019178,2]
[382290150,1756565469323,-951.89,0.00019178,2]
[382290151,1756565469332,-480.0,0.00019178,2]
[382290152,1756565469342,-659.91,0.00019178,2]
[382290153,1756565469352,-1570.93,0.00019178,2]
[382290154,1756565469362,-480.0,0.00019178,2]
[382290155,1756565469371,-994.39,0.00019178,2]
[382290156,1756565469381,-1763.19,0.00019178,2]
[382290157,1756565469391,-523.07,0.00019178,2]
[382290158,1756565469401,-151.0,0.00019178,2]
[382290159,1756565469410,-151.0,0.00019178,2]
[382290160,1756565469420,-151.0,0.00019178,2]
[382290161,1756565469430,-480.0,0.00019178,2]
[382290162,1756565469440,-283.538297,0.00019178,2]
[382290163,1756565469449,-480.0,0.00019178,2]
[382290164,1756565469459,-480.0,0.00019178,2]
[382290165,1756565469469,-151.0,0.00019178,2]
[382290166,1756565469479,-151.0,0.00019178,2]
[382290167,1756565469489,-1875.43,0.00019178,2]
[382290168,1756565469499,-151.0,0.00019178,2]
[382290169,1756565469508,-2231.82984434,0.00019178,2]
[382290170,1756565470341,-335.09476907,0.00019178,2]
[382290171,1756565487680,-168.60608282,0.00018445,2]
[382290174,1756565536331,-300.0,0.00018325,2]
[382290175,1756565536362,-1200.0,0.00018325,2]
[382290176,1756565536395,-2433.11,0.00018326,3]
[382290177,1756565536427,-917.23,0.00018326,3]
[382290178,1756565536637,-299.33,0.00018326,3]
[382290179,1756565536671,-608.28,0.00018326,3]
[382290180,1756565536703,-304.14,0.00018326,3]
[382290181,1756565536935,-6575.84,0.00018336,2]
[382290182,1756565536984,-10000.01,0.00018336,2]
[382290183,1756565537020,-10000.01,0.00018336,2]
[382290184,1756565537037,-10000.01,0.00018336,2]
[382290185,1756565537099,-10000.01,0.00018336,2]
[382290186,1756565537227,-10000.01,0.00018336,2]
[382290187,1756565537370,-10000.01,0.00018336,2]
[382290188,1756565537494,-10000.01,0.00018336,2]
[382290189,1756565537647,-10000.01,0.00018336,2]
[382290190,1756565537772,-10000.01,0.00018336,2]
[382290191,1756565537913,-10000.01,0.00018336,2]
[382290192,1756565538038,-10000.01,0.00018336,2]
[382290193,1756565538204,-10000.01,0.00018336,2]
[382290194,1756565538344,-10000.01,0.00018336,2]
[382290195,1756565567893,5000.0,0.00018011,2]
[382290196,1756565575866,5000.0,0.00018011,2]
[382290202,1756565651824,0.01,0.00017786,2]
[382290203,1756565651850,283.7762525,0.00017786,2]
[382290208,1756565737805,300.2267524,0.00017359,2]
[382290210,1756565756724,-342.1430291,0.00018053,2]
[382290211,1756565756757,-1368.57211641,0.00018272,2]
[382290212,1756565756789,-300.0,0.00018325,2]
[382290213,1756565756823,-300.0,0.00018325,2]
[382290214,1756565756857,-300.0,0.00018325,2]
[382290215,1756565756890,-300.0,0.00018325,2]
[382290216,1756565756923,-1200.0,0.00018325,2]
[382290217,1756565756953,-300.0,0.00018325,2]
[382290218,1756565756985,-152.07,0.00018326,3]
[382290219,1756565757019,-296.72970898,0.00018326,3]
[382290220,1756565757177,-280.98029102,0.00018326,3]
[382290221,1756565757209,-1923.85,0.00018326,3]
[382290222,1756565757242,-961.92,0.00018326,3]
[382290223,1756565757274,-480.96,0.00018326,3]
[382290224,1756565757306,-240.48,0.00018326,3]
[382290225,1756565757339,-721.47,0.00018326,3]
[382290226,1756565757971,-477.66670408,0.0001833,2]
[382290227,1756565758005,-10000.01,0.0001833,2]
[382290228,1756565758071,-10000.01,0.0001833,2]
[382290229,1756565758117,-2192.92374493,0.0001833,2]
[382290230,1756565758161,-7807.08625507,0.00018335,2]
[382290231,1756565758228,-10000.01,0.00018335,2]
[382290232,1756565758253,-2192.92374493,0.00018335,2]
[382290233,1756565758275,-5614.16251014,0.00018335,2]
[382290234,1756565758308,-10000.01,0.00018335,2]
[382290235,1756565758350,-10000.01,0.00018335,2]
[382290237,1756565766783,-300.0,0.00018334,2]
[382290238,1756565766816,-4385.79748986,0.00018335,2]
[382290239,1756565766849,-279.65132433,0.00018335,2]
[382290240,1756565766962,-69.11237162,0.00018335,2]
[382290241,1756565767009,-193.17610387,0.00018335,2]
[382290242,1756565767041,-500.0,0.00018335,2]
[382290243,1756565767073,-515.45012064,0.00018335,2]
[382290244,1756565767105,-500.0,0.00018335,2]
[382290245,1756565767138,-500.0,0.00018335,2]
[382290246,1756565767169,-183.87719648,0.00018335,2]
[382290247,1756565767205,-500.0,0.00018335,2]
[382290248,1756565767238,-500.0,0.00018335,2]
[382290249,1756565767270,-500.0,0.00018335,2]
[382290250,1756565767305,-608.8088143,0.00018335,2]
[382290251,1756565767338,-230.98518225,0.00018335,2]
[382290252,1756565767376,-35.41516492,0.00018335,2]
[382290253,1756565767749,-464.58483508,0.00018335,2]
[382290254,1756565767784,-376.68358098,0.00018335,2]
[382290255,1756565767815,-500.0,0.00018335,2]
[382290256,1756565767851,-500.0,0.00018335,2]
[382290257,1756565767882,-500.0,0.00018335,2]
[382290258,1756565767913,-500.0,0.00018335,2]
[382290259,1756565767947,-500.0,0.00018335,2]
[382290260,1756565767978,-457.11549854,0.00018335,2]
[382290261,1756565768013,-500.0,0.00018335,2]
[382290262,1756565768048,-500.0,0.00018335,2]
[382290263,1756565768082,-104.20006471,0.00018335,2]
[382290264,1756565768343,-194.84204138,0.00018335,2]
[382290265,1756565768378,-500.0,0.00018335,2]
[382290266,1756565768412,-500.0,0.00018335,2]
[382290267,1756565768448,-500.0,0.00018335,2]
[382290268,1756565768483,-500.0,0.00018335,2]
[382290269,1756565768520,-500.0,0.00018335,2]
[382290270,1756565768555,-500.0,0.00018335,2]
[382290271,1756565768590,-500.0,0.00018335,2]
[382290272,1756565768624,-500.0,0.00018335,2]
[382290273,1756565768655,-500.0,0.00018335,2]
[382290274,1756565768691,-110.32591724,0.00018335,2]
[382290275,1756565768872,-389.67408276,0.00018335,2]
[382290276,1756565768906,-500.0,0.00018335,2]
[382290277,1756565768939,-500.0,0.00018335,2]
[382290278,1756565768972,-500.0,0.00018335,2]
[382290279,1756565775008,151.0,0.000178,2]
[382290280,1756565775304,151.0,0.000169,2]
[382290281,1756565775640,151.0,0.000161,2]
[382290282,1756565776081,151.0,0.000152,2]
[382290283,1756565776495,151.0,0.000144,2]
[382290284,1756565776881,151.0,0.000135,2]
[382290285,1756565796861,3862.05230713,0.00018323,2]
[382290286,1756565816411,500.0,0.00018335,2]
[382290287,1756565816442,500.0,0.00018335,2]
[382290288,1756565816474,452.60952735,0.00018335,2]
[382290289,1756565816500,47.39047265,0.00018335,2]
[382290290,1756565816530,366.13726766,0.00018335,2]
[382290291,1756565816561,500.0,0.00018335,2]
[382290292,1756565816591,398.91673934,0.00018335,2]
[382290293,1756565816622,167.01821681,0.00018335,2]
[382290294,1756565816653,500.0,0.00018335,2]
[382290295,1756565816697,500.0,0.00018335,2]
[382290296,1756565816733,334.07137044,0.00018335,2]
[382290297,1756565816767,500.0,0.00018335,2]
[382290298,1756565816799,455.8056788,0.00018335,2]
[382290299,1756565816836,500.0,0.00018335,2]
[382290300,1756565816870,500.0,0.00018335,2]
[382290301,1756565816901,500.0,0.00018335,2]
[382290302,1756565816932,500.0,0.00018335,2]
[382290303,1756565816964,500.0,0.00018335,2]
[382290304,1756565816998,152.856635,0.00018335,2]
[382290305,1756565817029,450.15365242,0.00018335,2]
[382290306,1756565817061,500.0,0.00018335,2]
[382290307,1756565817096,500.0,0.00018335,2]
[382290308,1756565817130,320.64884746,0.00018335,2]
[382290309,1756565817167,500.0,0.00018335,2]
[382290310,1756565817200,500.0,0.00018335,2]
[382290311,1756565817235,500.0,0.00018335,2]
[382290312,1756565817270,307.01111942,0.00018335,2]
[382290313,1756565817298,192.98888058,0.00018335,2]
[382290314,1756565817331,250.0,0.00018335,2]
[382290315,1756565817363,500.0,0.00018335,2]
[382290316,1756565817403,500.0,0.00018335,2]
[382290317,1756565817544,500.0,0.00018335,2]
[382290318,1756565817575,500.0,0.00018335,2]
[382290319,1756565817729,300.0,0.00018335,2]
[382290320,1756565821758,500.0,0.00018335,2]
[382290321,1756565823539,300.0,0.00018335,2]
[382290323,1756565843178,711.251033,0.00013699,2]
[382290328,1756565969503,7979.7638224,0.00017335,2]
[382290331,1756566027218,-846.98518876,0.00018222,2]
[382290332,1756566027251,-3552.13155034,0.00018235,2]
[382290333,1756566027282,-300.0,0.00018322,2]
[382290334,1756566027431,-1200.0,0.00018322,2]
[382290335,1756566028321,-9770.55518632,0.00018323,2]
[382290336,1756566028379,-4656.82488698,0.00018323,2]
[382290337,1756566028588,-686.36022604,0.00018323,2]
[382290338,1756566028632,-2274.76,0.00018326,3]
[382290339,1756566028676,-1137.38,0.00018326,3]
[382290340,1756566028721,-568.69,0.00018326,3]
[382290341,1756566028764,-284.34,0.00018326,3]
[382290342,1756566028863,-853.06,0.00018326,3]
[382290343,1756566028905,-500.0,0.00018335,2]
[382290344,1756566029229,7293.89,0.00018335,2]
[382290345,1756566029261,10000.01,0.00018335,2]
[382290346,1756566029292,10000.01,0.00018335,2]
[382290347,1756566037552,-3489.44977396,0.00018335,2]
[382290348,1756566037736,-10000.01,0.00018335,2]
[382290349,1756566038079,-783.37977396,0.00018335,2]
[382290350,1756566038108,-8433.25045208,0.00018335,2]
[382290351,1756566038527,1121.736,0.00027397,120]
[382290352,1756566046273,500.0,0.00018334,2]
[382290353,1756566046320,500.0,0.00018334,2]
[382290354,1756566046361,500.0,0.00018334,2]
[382290355,1756566046395,500.0,0.00018334,2]
[382290356,1756566046425,500.0,0.00018334,2]
[382290357,1756566046458,610.70623314,0.00018334,2]
[382290358,1756566048919,500.0,0.00018334,2]
[382290359,1756566048954,500.0,0.00018334,2]
[382290360,1756566048985,438.2434944,0.00018334,2]
[382290361,1756566049016,500.0,0.00018334,2]
[382290362,1756566049049,500.0,0.00018334,2]
[382290363,1756566049084,500.0,0.00018334,2]
[382290364,1756566049114,463.42143325,0.00018334,2]
[382290365,1756566049157,500.0,0.00018334,2]
[382290366,1756566049191,500.0,0.00018334,2]
[382290367,1756566049225,500.0,0.00018334,2]
[382290368,1756566049257,500.0,0.00018334,2]
[382290369,1756566049293,500.0,0.00018334,2]
[382290370,1756566049324,461.51602756,0.00018334,2]
[382290371,1756566049355,500.0,0.00018334,2]
[382290372,1756566049390,26.12281165,0.00018334,2]
[382290373,1756566049421,473.87718835,0.00018334,2]
[382290374,1756566049453,500.0,0.00018334,2]
[382290375,1756566049485,500.0,0.00018334,2]
[382290376,1756566049518,500.0,0.00018334,2]
[382290377,1756566049555,500.0,0.00018334,2]
[382290378,1756566049586,500.0,0.00018334,2]
[382290379,1756566049621,500.0,0.00018334,2]
[382290380,1756566049657,500.0,0.00018334,2]
[382290381,1756566049688,500.0,0.00018334,2]
[382290382,1756566049719,500.0,0.00018334,2]
[382290383,1756566049753,500.0,0.00018334,2]
[382290384,1756566049788,500.0,0.00018334,2]
[382290385,1756566049820,500.0,0.00018334,2]
[382290386,1756566049861,500.0,0.00018334,2]
[382290387,1756566049893,500.0,0.00018334,2]
[382290388,1756566049931,500.0,0.00018334,2]
[382290389,1756566049965,500.0,0.00018334,2]
[382290390,1756566050000,237.95826669,0.00018334,2]
[382290391,1756566050031,493.2200638,0.00018334,2]
[382290392,1756566050064,500.0,0.00018334,2]
[382290393,1756566050101,294.95448116,0.00018334,2]
[382290394,1756566050127,205.04551884,0.00018334,2]
[382290395,1756566050159,500.0,0.00018334,2]
[382290396,1756566050212,500.0,0.00018334,2]
[382290397,1756566050245,500.0,0.00018334,2]
[382290398,1756566050308,448.88279573,0.00018334,2]
[382290399,1756566050365,500.0,0.00018334,2]
[382290400,1756566050409,204.50712546,0.00018334,2]
[382290401,1756566050450,500.0,0.00018334,2]
[382290402,1756566050484,627.18474222,0.00018334,2]
[382290403,1756566050519,500.0,0.00018334,2]
[382290404,1756566050552,500.0,0.00018334,2]
[382290405,1756566050582,500.0,0.00018334,2]
[382290406,1756566050615,500.0,0.00018334,2]
[382290407,1756566050651,500.0,0.00018334,2]
[382290408,1756566050684,500.0,0.00018334,2]
[382290409,1756566050715,500.0,0.00018334,2]
[382290410,1756566050753,500.0,0.00018334,2]
[382290411,1756566050789,500.0,0.00018334,2]
[382290412,1756566050823,500.0,0.00018334,2]
[382290413,1756566050855,500.0,0.00018334,2]
[382290414,1756566050889,500.0,0.00018334,2]
[382290415,1756566050924,14.38981775,0.00018334,2]
[382290416,1756566050955,485.61018225,0.00018334,2]
[382290417,1756566050995,500.0,0.00018334,2]
[382290418,1756566051026,500.0,0.00018334,2]
[382290419,1756566051057,500.0,0.00018334,2]
[382290420,1756566051089,223.94591799,0.00018334,2]
[382290421,1756566051120,500.0,0.00018334,2]
[382290422,1756566051155,500.0,0.00018334,2]
[382290423,1756566051187,500.0,0.00018334,2]
[382290424,1756566051222,500.0,0.00018334,2]
[382290425,1756566051260,500.0,0.00018334,2]
[382290426,1756566051293,500.0,0.00018334,2]
[382290427,1756566051326,500.0,0.00018334,2]
[382290428,1756566051367,500.0,0.00018334,2]
[382290429,1756566051403,500.0,0.00018334,2]
[382290430,1756566051458,500.0,0.00018334,2]
[382290431,1756566051492,500.0,0.00018334,2]
[382290432,1756566051704,500.0,0.00018334,2]
[382290433,1756566051740,500.0,0.00018334,2]
[382290434,1756566051783,500.0,0.00018334,2]
[382290435,1756566051822,500.0,0.00018334,2]
[382290436,1756566051853,500.0,0.00018334,2]
[382290437,1756566051897,500.0,0.00018334,2]
[382290438,1756566051931,500.0,0.00018334,2]
[382290439,1756566051965,500.0,0.00018334,2]
[382290440,1756566051997,425.0,0.00018334,2]
[382290441,1756566053181,312.8345011,0.00017371,2]
[382290444,1756566213340,924.725486,0.00017329,2]
[382290446,1756566480379,222.04,0.00015984,2]
[382290450,1756566510155,155.0,0.00027397,120]
[382290451,1756566544855,8540.4100129,0.00018,2]
[382290452,1756566544881,10000.01,0.00018,2]
[382290453,1756566544909,10000.01,0.00018,2]
[382290454,1756566544935,2844.92127674,0.00018,2]
[382290455,1756566578119,7155.08872326,0.00018,2]
[382290456,1756566578143,10000.01,0.00018,2]
[382290457,1756566578167,10000.01,0.00018,2]
[382290458,1756566578190,10000.01,0.00018,2]
[382290459,1756566578214,10000.01,0.00018,2]
[382290460,1756566578238,10000.01,0.00018,2]
[382290461,1756566578264,8739.86127674,0.00018,2]
[382290462,1756566578512,1260.14872326,0.00018011,2]
[382290463,1756566578538,2847.01172884,0.00018011,2]
[382290489,1756566632353,-177.95419908,0.00018125,2]
[382290490,1756566632362,-485.90853517,0.00018125,2]
[382290491,1756566632372,-1411.00824357,0.00018225,2]
[382290523,1756566638161,-1714.08257679,0.00018225,2]
[382290524,1756566638171,-398.0,0.00018278,2]
[382290525,1756566638181,-300.0,0.00018279,2]
[382290526,1756566638192,-300.0,0.00018279,2]
[382290527,1756566638202,-300.0,0.00018279,2]
[382290528,1756566638212,-153.0,0.00018279,2]
[382290529,1756566638221,-300.0,0.00018279,2]
[382290530,1756566638231,-1200.0,0.00018279,2]
[382290531,1756566638241,-21811.17220283,0.0001828,2]
[382290532,1756566638250,-1200.0,0.00018289,2]
[382290533,1756566638259,-12639.62554422,0.00018289,2]
[382290534,1756566638401,-23635.9258306,0.00018289,2]
[382290535,1756566638411,-161.48883767,0.000183,2]
[382290536,1756566638420,-161.48883767,0.000183,2]
[382290538,1756566638429,-2347.87260389,0.00018321,2]
[382290540,1756566638439,-398.0,0.00018321,2]
[382290541,1756566638449,-345.6340259,0.00018323,2]
[382290542,1756566638459,-221.46889598,0.00018323,2]
[382290543,1756566638468,-189.38968061,0.00018323,2]
[382290544,1756566638478,-500.0,0.00018323,2]
[382290545,1756566638488,-605.43142175,0.00018323,2]
[382290546,1756566638498,-500.0,0.00018323,2]
[382290548,1756566638508,-500.0,0.00018323,2]
[382290550,1756566638518,-500.0,0.00018323,2]
[382290552,1756566638530,-500.0,0.00018323,2]
[382290554,1756566638549,-500.0,0.00018323,2]
[382290556,1756566638559,-478.77974508,0.00018323,2]
[382290558,1756566638569,-500.0,0.00018323,2]
[382290560,1756566638578,-500.0,0.00018323,2]
[382290562,1756566638588,-500.0,0.00018323,2]
[382290564,1756566638597,-500.0,0.00018323,2]
[382290566,1756566638607,-500.0,0.00018323,2]
[382290568,1756566638616,-500.0,0.00018323,2]
[382290570,1756566638625,-500.0,0.00018323,2]
[382290572,1756566638635,-500.0,0.00018323,2]
[382290574,1756566638644,-500.0,0.00018323,2]
[382290576,1756566638654,-500.0,0.00018323,2]
[382290578,1756566638663,-500.0,0.00018323,2]
[382290580,1756566638672,-622.39459179,0.00018323,2]
[382290582,1756566638682,-500.0,0.00018323,2]
[382290584,1756566638692,-500.0,0.00018323,2]
[382290586,1756566638701,-500.0,0.00018323,2]
[382290588,1756566638712,-500.0,0.00018323,2]
[382290590,1756566638729,-500.0,0.00018323,2]
[382290592,1756566638742,-500.0,0.00018323,2]
[382290594,1756566638752,-500.0,0.00018323,2]
[382290596,1756566638762,-500.0,0.00018323,2]
[382290598,1756566638780,-500.0,0.00018323,2]
[382290600,1756566638789,-500.0,0.00018323,2]
[382290602,1756566638801,-456.27184742,0.00018323,2]
[382290604,1756566638811,-500.0,0.00018323,2]
[382290606,1756566638821,-500.0,0.00018323,2]
[382290608,1756566638831,-500.0,0.00018323,2]
[382290610,1756566638840,-597.02086221,0.00018323,2]
[382290612,1756566638850,-500.0,0.00018323,2]
[382290614,1756566638861,-500.0,0.00018323,2]
[382290616,1756566638870,-500.0,0.00018323,2]
[382290618,1756566638880,-500.0,0.00018323,2]
[382290620,1756566638889,-500.0,0.00018323,2]
[382290622,1756566638899,-500.0,0.00018323,2]
[382290624,1756566638908,-500.0,0.00018323,2]
[382290626,1756566638917,-500.0,0.00018323,2]
[382290627,1756566638930,-500.0,0.00018323,2]
[382290628,1756566638941,-500.0,0.00018323,2]
[382290629,1756566638951,-500.0,0.00018323,2]
[382290630,1756566638961,-500.0,0.00018323,2]
[382290631,1756566638971,-500.0,0.00018323,2]
[382290632,1756566638981,-500.0,0.00018323,2]
[382290633,1756566638990,-500.0,0.00018323,2]
[382290635,1756566639003,-500.0,0.00018323,2]
[382290636,1756566639014,-500.0,0.00018323,2]
[382290638,1756566639024,-500.0,0.00018323,2]
[382290640,1756566639035,-500.0,0.00018323,2]
[382290642,1756566639045,-500.0,0.00018323,2]
[382290644,1756566639054,-500.0,0.00018323,2]
[382290646,1756566639064,-500.0,0.00018323,2]
[382290648,1756566639074,-500.0,0.00018323,2]
[382290650,1756566639084,-500.0,0.00018323,2]
[382290652,1756566639094,-500.0,0.00018323,2]
[382290654,1756566639103,-500.0,0.00018323,2]
[382290656,1756566639113,-500.0,0.00018323,2]
[382290658,1756566639122,-500.0,0.00018323,2]
[382290661,1756566639132,-500.0,0.00018323,2]
[382290663,1756566639141,-500.0,0.00018323,2]
[382290665,1756566639151,-500.0,0.00018323,2]
[382290666,1756566639161,-500.0,0.00018323,2]
[382290668,1756566639170,-500.0,0.00018323,2]
[382290670,1756566639181,-155.0,0.00018323,2]
[382290672,1756566639191,-998.40255591,0.00018323,2]
[382290674,1756566639201,-8280.3077518,0.00018324,2]
[382290676,1756566639211,-6222.2397129,0.00018324,2]
[382290678,1756566639221,-89306.014608,0.00018324,2]
[382290680,1756566639231,-254.52718479,0.00018325,2]
[382290682,1756566639240,-187.78006525,0.00018325,2]
[382290684,1756566639249,-151.0,0.00018325,2]
[382290686,1756566639259,-151.0,0.00018325,2]
[382290688,1756566639269,-151.0,0.00018325,2]
[382290690,1756566639278,-151.0,0.00018325,2]
[382290692,1756566639288,-151.0,0.00018325,2]
[382290694,1756566639297,-500.0,0.00018325,2]
[382290696,1756566639307,-500.0,0.00018325,2]
[382290698,1756566639317,-500.0,0.00018325,2]
[382290700,1756566639326,-500.0,0.00018325,2]
[382290702,1756566639335,-500.0,0.00018325,2]
[382290704,1756566639345,-500.0,0.00018325,2]
[382290707,1756566639357,-500.0,0.00018325,2]
[382290708,1756566639367,-500.0,0.00018325,2]
[382290710,1756566639376,-500.0,0.00018325,2]
[382290712,1756566639385,-500.0,0.00018325,2]
[382290715,1756566639395,-500.0,0.00018325,2]
[382290717,1756566639406,-500.0,0.00018325,2]
[382290718,1756566639417,-500.0,0.00018325,2]
[382290740,1756566639621,-500.0,0.00018325,2]
[382290743,1756566639633,-500.0,0.00018325,2]
[382290746,1756566639642,-500.0,0.00018325,2]
[382290748,1756566639651,-500.0,0.00018325,2]
[382290751,1756566639661,-500.0,0.00018325,2]
[382290753,1756566639671,-1000.0,0.00018325,2]
[382290755,1756566639681,-500.0,0.00018325,2]
[382290757,1756566639690,-1000.0,0.00018325,2]
[382290759,1756566639700,-151.0,0.00018325,2]
[382290761,1756566639710,-1000.0,0.00018325,2]
[382290763,1756566639719,-290.01689684,0.00018325,2]
[382290765,1756566639729,-151.08059236,0.00018325,2]
[382290767,1756566639739,-1000.0,0.00018325,2]
[382290769,1756566639749,-1000.0,0.00018325,2]
[382290771,1756566639759,-1000.0,0.00018325,2]
[382290773,1756566639768,-1000.0,0.00018325,2]
[382290775,1756566639778,-1000.0,0.00018325,2]
[382290777,1756566639788,-963.21993475,0.00018325,2]
[382290779,1756566639797,-151.0,0.00018325,2]
[382290781,1756566639807,-151.0,0.00018325,2]
[382290783,1756566639817,-5680.76,0.00018326,3]
[382290785,1756566639826,-2840.38,0.00018326,3]
[382290787,1756566639835,-1420.19,0.00018326,3]
[382290790,1756566639844,-710.1,0.00018326,3]
[382290793,1756566639854,-355.05,0.00018326,3]
[382290796,1756566639863,-177.52,0.00018326,3]
[382290798,1756566639873,-532.6,0.00018326,3]
[382290800,1756566639883,-529.89603018,0.00018326,3]
[382290802,1756566639893,-417.15472785,0.00018326,3]
[382290804,1756566639903,-3540.67336083,0.00018334,2]
[382290806,1756566639912,-500.0,0.00018335,2]
[382290808,1756566639926,-500.0,0.00018335,2]
[382290810,1756566639936,-500.0,0.00018335,2]
[382290812,1756566639946,-237.83539318,0.00018335,2]
[382290815,1756566639957,-233424.03,0.00018336,2]
[382290817,1756566639970,-2434.74389024,0.00018376,2]
[382290819,1756566639981,-2501.99485078,0.00018423,2]
[382290821,1756566639991,-2524.82941417,0.00018431,2]
[382290823,1756566640002,-3125.09082032,0.00018438,2]
[382290825,1756566640012,-2618.2481025,0.00018486,2]
[382290827,1756566640022,-398.0,0.00018487,2]
[382290829,1756566640031,-518.11,0.000185,2]
[382290831,1756566640041,-398.0,0.00018502,2]
[382290833,1756566640051,-2715.12328229,0.00018541,2]
[382290835,1756566640060,-357.48100074,0.00018547,2]
[382290837,1756566640070,-2815.58284374,0.00018596,2]
[382290839,1756566640081,-151.0,0.000186,2]
[382290841,1756566640091,-500.0,0.00018609,2]
[382290843,1756566640101,-2919.75940895,0.00018651,2]
[382290845,1756566640111,-3125.09082032,0.00018652,2]
[382290847,1756566640120,-398.0,0.00018659,2]
[382290849,1756566640130,-300.0,0.00018702,20]
[382290851,1756566640140,-300.0,0.00018702,20]
[382290853,1756566640150,-300.0,0.00018702,20]
[382290855,1756566640159,-300.0,0.00018702,20]
[382290857,1756566640171,-300.0,0.00018702,20]
[382290859,1756566640180,-300.0,0.00018702,20]
[382290861,1756566640191,-300.0,0.00018702,20]
[382290863,1756566640200,-300.0,0.00018702,20]
[382290865,1756566640210,-300.0,0.00018702,20]
[382290867,1756566640220,-300.0,0.00018702,20]
[382290869,1756566640230,-300.0,0.00018702,20]
[382290871,1756566640240,-300.0,0.00018702,20]
[382290873,1756566640251,-300.0,0.00018702,20]
[382290875,1756566640261,-300.0,0.00018702,20]
[382290877,1756566640271,-300.0,0.00018702,20]
[382290879,1756566640282,-600.0,0.00018702,20]
[382290881,1756566640304,-3027.79050709,0.00018706,2]
[382290883,1756566640315,-398.0,0.00018718,2]
[382290885,1756566640326,-365.0,0.00018747,2]
[382290886,1756566640336,-3139.81875585,0.00018761,2]
[382290887,1756566640346,-316.0,0.00018768,2]
[382290888,1756566640356,-3255.99204981,0.00018816,2]
[382290889,1756566640366,-3125.09082032,0.00018865,2]
[382290890,1756566640376,-3376.46375566,0.00018871,2]
[382290891,1756566640386,-500.0,0.00018883,2]
[382290892,1756566640396,-520.276,0.00018891,2]
[382290893,1756566640405,-176.77108969,0.000189,2]